fUST/lending_fUST_20250606
["ID","MTS","AMOUNT","RATE_DAILY","PERIOD"]
[364657281,1749186637858,-423.83542519,0.00021622,2]
[364657282,1749186637867,-440.0,0.00021917,2]
[364657283,1749186637876,-416.71407195,0.00022191,2]
[364657284,1749186637886,-440.0,0.00022191,2]
[364657285,1749186637895,-440.0,0.00022191,2]
[364657286,1749186637905,-440.0,0.00022191,2]
[364657287,1749186637914,-440.0,0.00022191,2]
[364657288,1749186637924,-653.12,0.00022191,2]
[364657289,1749186637933,-440.0,0.00022191,2]
[364657290,1749186637942,-440.0,0.00022191,2]
[364657291,1749186637952,-442.19,0.00022191,2]
[364657292,1749186637962,-440.0,0.00022191,2]
[364657293,1749186637975,-440.0,0.00022191,2]
[364657294,1749186637986,-440.0,0.00022191,2]
[364657295,1749186637996,-440.0,0.00022191,2]
[364657296,1749186638007,-440.0,0.00022191,2]
[364657297,1749186638019,-440.0,0.00022191,2]
[364657298,1749186638030,-611.28,0.000222,7]
[364657299,1749186638041,-221.02515987,0.00022279,6]
[364657300,1749186638051,-500.0,0.00022324,2]
[364657301,1749186638062,-500.0,0.00022336,2]
[364657302,1749186638071,-500.0,0.00022336,2]
[364657303,1749186638081,-500.0,0.00022349,2]
[364657304,1749186638090,-221.02515987,0.00022417,7]
[364657305,1749186638100,-462.72188227,0.00022465,2]
[364657306,1749186638109,-440.0,0.00022465,2]
[364657307,1749186638119,-466.36435969,0.00022465,2]
[364657308,1749186638128,-263.14183753,0.00022465,2]
[364657309,1749186638137,-440.0,0.00022465,2]
[364657310,1749186638147,-440.0,0.00022465,2]
[364657311,1749186638156,-437.56767647,0.00022465,2]
[364657312,1749186638166,-440.0,0.00022465,2]
[364657313,1749186638272,-440.0,0.00022465,2]
[364657314,1749186638282,-430.01621852,0.00022465,2]
[364657315,1749186638291,-440.0,0.00022465,2]
[364657316,1749186638301,-440.0,0.00022465,2]
[364657317,1749186638311,-440.0,0.00022465,2]
[364657318,1749186638320,-434.09477188,0.00022465,2]
[364657319,1749186638330,-440.0,0.00022465,2]
[364657320,1749186638339,-440.0,0.00022465,2]
[364657321,1749186638349,-440.0,0.00022465,2]
[364657322,1749186638359,-350.83257723,0.00022465,2]
[364657323,1749186638368,-440.0,0.00022465,2]
[364657324,1749186638378,-217.90370609,0.00022465,2]
[364657325,1749186638389,-445.5047205,0.00022465,2]
[364657326,1749186638400,-440.0,0.00022465,2]
[364657327,1749186638409,-440.0,0.00022465,2]
[364657328,1749186638419,-440.0,0.00022465,2]
[364657329,1749186638429,-440.0,0.00022465,2]
[364657330,1749186638439,-440.0,0.00022465,2]
[364657331,1749186638450,-440.0,0.00022465,2]
[364657332,1749186638461,-440.0,0.00022465,2]
[364657333,1749186638470,-440.0,0.00022465,2]
[364657334,1749186638480,-440.0,0.00022465,2]
[364657335,1749186638490,-161.20095711,0.00022465,2]
[364657336,1749186638500,-440.0,0.00022465,2]
[364657337,1749186638510,-440.0,0.00022465,2]
[364657338,1749186638519,-440.0,0.00022465,2]
[364657339,1749186638529,-502.81372255,0.00022465,2]
[364657340,1749186638539,-417.96947493,0.00022465,2]
[364657341,1749186638550,-440.0,0.00022465,2]
[364657342,1749186638560,-440.0,0.00022465,2]
[364657343,1749186638570,-440.0,0.00022465,2]
[364657344,1749186638581,-440.0,0.00022465,2]
[364657345,1749186638591,-440.0,0.00022465,2]
[364657346,1749186638600,-440.0,0.00022465,2]
[364657347,1749186638610,-440.0,0.00022465,2]
[364657348,1749186638620,-440.0,0.00022465,2]
[364657349,1749186638630,-410.0,0.00022465,2]
[364657350,1749186638639,-410.0,0.00022465,2]
[364657351,1749186638650,-440.0,0.00022465,2]
[364657352,1749186638659,-440.0,0.00022465,2]
[364657353,1749186638669,-440.0,0.00022465,2]
[364657354,1749186638679,-440.0,0.00022465,2]
[364657355,1749186638689,-440.0,0.00022465,2]
[364657356,1749186638699,-440.0,0.00022465,2]
[364657357,1749186638708,-227.19728997,0.00022465,2]
[364657358,1749186638717,-440.0,0.00022465,2]
[364657359,1749186638727,-440.0,0.00022465,2]
[364657360,1749186638736,-461.38059154,0.00022465,2]
[364657361,1749186638745,-440.0,0.00022465,2]
[364657362,1749186638755,-440.0,0.00022465,2]
[364657363,1749186638764,-440.0,0.00022465,2]
[364657364,1749186638775,-440.0,0.00022465,2]
[364657365,1749186638783,-440.0,0.00022465,2]
[364657366,1749186638792,-479.17301178,0.00022465,2]
[364657367,1749186638802,-397.33191295,0.00022465,2]
[364657368,1749186638811,-410.0,0.00022465,2]
[364657369,1749186638820,-440.0,0.00022465,2]
[364657370,1749186638829,-440.0,0.00022465,2]
[364657371,1749186638839,-440.0,0.00022465,2]
[364657372,1749186638848,-440.0,0.00022465,2]
[364657373,1749186638857,-410.0,0.00022465,2]
[364657374,1749186638867,-440.0,0.00022465,2]
[364657375,1749186638876,-440.0,0.00022465,2]
[364657376,1749186638886,-440.0,0.00022465,2]
[364657377,1749186638895,-440.0,0.00022465,2]
[364657378,1749186638905,-440.0,0.00022465,2]
[364657379,1749186638914,-440.0,0.00022465,2]
[364657380,1749186638924,-440.0,0.00022465,2]
[364657381,1749186638933,-653.12,0.00022465,2]
[364657382,1749186638942,-336.81100998,0.00022465,2]
[364657383,1749186638952,-440.0,0.00022465,2]
[364657384,1749186638961,-442.19,0.00022465,2]
[364657385,1749186638975,-212.21124586,0.00022465,2]
[364657386,1749186638991,-440.0,0.00022465,2]
[364657387,1749186639001,-545.45702426,0.00022465,2]
[364657388,1749186639010,-472.97077124,0.00022465,2]
[364657389,1749186639020,-410.0,0.00022465,2]
[364657390,1749186639032,-410.0,0.00022465,2]
[364657391,1749186639041,-221.02515987,0.00022555,7]
[364657392,1749186639051,-221.02515987,0.00022693,7]
[364657393,1749186639060,-442.86435403,0.00022739,2]
[364657394,1749186639070,-410.23895878,0.00022739,2]
[364657395,1749186639080,-440.16860411,0.00022739,2]
[364657396,1749186639089,-400.0,0.00022739,2]
[364657397,1749186639098,-400.0,0.00022739,2]
[364657398,1749186639108,-440.0,0.00022739,2]
[364657399,1749186639117,-400.0,0.00022739,2]
[364657400,1749186639126,-400.0,0.00022739,2]
[364657401,1749186639135,-401.96190903,0.00022739,2]
[364657402,1749186639145,-440.0,0.00022739,2]
[364657403,1749186639154,-400.0,0.00022739,2]
[364657404,1749186639163,-440.0,0.00022739,2]
[364657405,1749186639172,-400.0,0.00022739,2]
[364657406,1749186639182,-400.0,0.00022739,2]
[364657407,1749186639191,-243.16251043,0.00022739,2]
[364657408,1749186639201,-214.00878273,0.00022739,2]
[364657409,1749186639210,-400.0,0.00022739,2]
[364657410,1749186639220,-440.0,0.00022739,2]
[364657411,1749186639229,-440.0,0.00022739,2]
[364657412,1749186639239,-193.25,0.00022739,2]
[364657413,1749186639248,-400.0,0.00022739,2]
[364657414,1749186639257,-400.0,0.00022739,2]
[364657415,1749186639267,-440.0,0.00022739,2]
[364657416,1749186639277,-246.70224542,0.00022739,2]
[364657417,1749186639286,-400.0,0.00022739,2]
[364657418,1749186639295,-440.0,0.00022739,2]
[364657419,1749186639306,-502.64261384,0.00022739,2]
[364657420,1749186639315,-400.0,0.00022739,2]
[364657421,1749186639324,-177.6729744,0.00022739,2]
[364657422,1749186639334,-440.0,0.00022739,2]
[364657423,1749186639343,-467.7642072,0.00022739,2]
[364657424,1749186639353,-400.0,0.00022739,2]
[364657425,1749186639364,-440.0,0.00022739,2]
[364657426,1749186639374,-400.0,0.00022739,2]
[364657427,1749186639384,-310.11,0.00022739,2]
[364657428,1749186639393,-400.0,0.00022739,2]
[364657429,1749186639403,-400.0,0.00022739,2]
[364657430,1749186639414,-400.0,0.00022739,2]
[364657431,1749186639424,-440.0,0.00022739,2]
[364657432,1749186639434,-440.0,0.00022739,2]
[364657433,1749186639444,-400.0,0.00022739,2]
[364657434,1749186639454,-400.0,0.00022739,2]
[364657435,1749186639464,-400.0,0.00022739,2]
[364657436,1749186639475,-400.0,0.00022739,2]
[364657437,1749186639485,-400.0,0.00022739,2]
[364657438,1749186639495,-418.80372629,0.00022739,2]
[364657439,1749186639505,-341.97587084,0.00022739,2]
[364657440,1749186639515,-400.0,0.00022739,2]
[364657441,1749186639528,-440.0,0.00022739,2]
[364657442,1749186639538,-400.0,0.00022739,2]
[364657443,1749186639549,-400.0,0.00022739,2]
[364657445,1749186639559,-440.0,0.00022739,2]
[364657447,1749186639569,-440.0,0.00022739,2]
[364657449,1749186639579,-440.0,0.00022739,2]
[364657451,1749186639589,-400.0,0.00022739,2]
[364657453,1749186639599,-440.0,0.00022739,2]
[364657455,1749186639609,-653.12,0.00022739,2]
[364657456,1749186639619,-413.87010686,0.00022739,2]
[364657457,1749186639628,-442.19,0.00022739,2]
[364657458,1749186639638,-400.0,0.00022739,2]
[364657460,1749186639648,-221.02515987,0.00022831,8]
[364657462,1749186639658,-1000.0,0.00022884,2]
[364657464,1749186639668,-1000.0,0.00022884,2]
[364657466,1749186639678,-150.0,0.00022887,2]
[364657468,1749186639688,-483.06542113,0.00022897,2]
[364657470,1749186639698,-221.02515987,0.00022969,8]
[364657471,1749186639707,-440.0,0.00023013,2]
[364657472,1749186639718,-440.0,0.00023013,2]
[364657473,1749186639727,-440.0,0.00023013,2]
[364657474,1749186639737,-440.0,0.00023013,2]
[364657475,1749186639747,-251.20328032,0.00023013,2]
[364657476,1749186639757,-440.0,0.00023013,2]
[364657477,1749186639766,-440.0,0.00023013,2]
[364657478,1749186639777,-440.0,0.00023013,2]
[364657479,1749186639787,-420.0,0.00023013,2]
[364657480,1749186639796,-440.0,0.00023013,2]
[364657481,1749186639806,-320.0,0.00023013,2]
[364657482,1749186639816,-440.0,0.00023013,2]
[364657483,1749186639826,-440.0,0.00023013,2]
[364657484,1749186639836,-440.0,0.00023013,2]
[364657485,1749186639846,-440.0,0.00023013,2]
[364657486,1749186639855,-440.0,0.00023013,2]
[364657487,1749186639865,-653.12,0.00023013,2]
[364657488,1749186639874,-442.19,0.00023013,2]
[364657489,1749186639884,-221.02515987,0.00023107,8]
[364657490,1749186639894,-159.30974851,0.00023122,2]
[364657491,1749186639903,-207.4,0.00023122,2]
[364657492,1749186639913,-469.96771901,0.00023122,2]
[364657494,1749186639922,-500.0,0.00023122,2]
[364657495,1749186639932,-500.0,0.00023122,2]
[364657496,1749186639941,-500.0,0.00023122,2]
[364657497,1749186639951,-500.0,0.00023122,2]
[364657498,1749186639961,-500.0,0.00023122,2]
[364657499,1749186639971,-500.0,0.00023122,2]
[364657500,1749186639983,-1224.68192869,0.00023122,2]
[364657502,1749186639992,-500.0,0.00023122,2]
[364657503,1749186640002,-500.0,0.00023122,2]
[364657504,1749186640013,-500.0,0.00023122,2]
[364657505,1749186640022,-500.0,0.00023122,2]
[364657506,1749186640032,-500.0,0.00023122,2]
[364657507,1749186640042,-513.78055257,0.00023122,2]
[364657508,1749186640059,-3000.0,0.000232,2]
[364657509,1749186640070,-3000.0,0.0002321,2]
[364657510,1749186640079,-3000.0,0.0002322,2]
[364657511,1749186640089,-3000.0,0.0002323,2]
[364657512,1749186640099,-3000.0,0.0002324,2]
[364657513,1749186640109,-221.02515987,0.00023245,8]
[364657514,1749186640118,-3000.0,0.0002325,2]
[364657515,1749186640128,-3000.0,0.0002326,2]
[364657516,1749186640138,-3000.0,0.0002327,2]
[364657517,1749186640148,-3000.0,0.0002328,2]
[364657519,1749186640158,-440.0,0.00023287,2]
[364657521,1749186640167,-440.0,0.00023287,2]
[364657523,1749186640176,-440.0,0.00023287,2]
[364657525,1749186640187,-440.0,0.00023287,2]
[364657527,1749186640197,-440.0,0.00023287,2]
[364657529,1749186640206,-511.52060736,0.00023287,2]
[364657531,1749186640216,-440.0,0.00023287,2]
[364657533,1749186640225,-440.0,0.00023287,2]
[364657535,1749186640235,-440.0,0.00023287,2]
[364657537,1749186640244,-440.0,0.00023287,2]
[364657539,1749186640254,-440.0,0.00023287,2]
[364657541,1749186640264,-440.0,0.00023287,2]
[364657543,1749186640274,-440.0,0.00023287,2]
[364657545,1749186640284,-653.12,0.00023287,2]
[364657547,1749186640293,-442.19,0.00023287,2]
[364657549,1749186640303,-3000.0,0.0002329,2]
[364657551,1749186640313,-3000.0,0.000233,2]
[364657553,1749186640323,-3000.0,0.0002331,2]
[364657555,1749186640334,-5970.610765,0.0002332,2]
[364657558,1749186640344,-221.02515987,0.00023383,9]
[364657560,1749186640354,-241.0651434,0.00023432,2]
[364657562,1749186640365,-1890.11867844,0.00023461,2]
[364657564,1749186640375,-221.02515987,0.00023521,9]
[364657565,1749186640384,-440.0,0.00023561,2]
[364657566,1749186640393,-440.0,0.00023561,2]
[364657567,1749186640403,-360.0,0.00023561,2]
[364657568,1749186640412,-440.0,0.00023561,2]
[364657569,1749186640421,-440.0,0.00023561,2]
[364657570,1749186640431,-440.0,0.00023561,2]
[364657571,1749186640440,-440.0,0.00023561,2]
[364657572,1749186640449,-440.0,0.00023561,2]
[364657573,1749186640459,-440.0,0.00023561,2]
[364657574,1749186640469,-440.0,0.00023561,2]
[364657575,1749186640478,-440.0,0.00023561,2]
[364657576,1749186640487,-330.97598513,0.00023561,2]
[364657577,1749186640497,-653.12,0.00023561,2]
[364657578,1749186640506,-442.19,0.00023561,2]
[364657579,1749186640515,-500.0,0.00023624,2]
[364657580,1749186640526,-500.0,0.00023651,2]
[364657581,1749186640535,-221.02515987,0.00023659,9]
[364657582,1749186640545,-1890.11867844,0.00023661,2]
[364657583,1749186640555,-500.0,0.00023679,2]
[364657584,1749186640565,-500.0,0.00023706,2]
[364657585,1749186640574,-259.02582532,0.00023734,2]
[364657586,1749186640589,-240.97417468,0.00023734,2]
[364657587,1749186640599,-500.0,0.00023761,2]
[364657588,1749186640608,-500.0,0.00023788,2]
[364657589,1749186640618,-709.0,0.00023795,2]
[364657590,1749186640627,-405.0,0.00023795,2]
[364657591,1749186640636,-221.02515987,0.00023797,9]
[364657593,1749186640646,-409.39212055,0.00023816,2]
[364657595,1749186640656,-440.0,0.00023835,2]
[364657597,1749186640665,-440.0,0.00023835,2]
[364657607,1749186640762,-440.0,0.00023835,2]
[364657609,1749186640772,-440.0,0.00023835,2]
[364657611,1749186640783,-440.0,0.00023835,2]
[364657613,1749186640792,-440.0,0.00023835,2]
[364657615,1749186640802,-440.0,0.00023835,2]
[364657617,1749186640813,-191.10107251,0.00023835,2]
[364657619,1749186640822,-440.0,0.00023835,2]
[364657621,1749186640832,-440.0,0.00023835,2]
[364657623,1749186640841,-653.12,0.00023835,2]
[364657625,1749186640851,-442.19,0.00023835,2]
[364657627,1749186640862,-85.64299818,0.00023865,3]
[364657629,1749186640874,-172.24028382,0.00023865,3]
[364657631,1749186640884,-2539.54,0.000239,7]
[364657633,1749186640894,-751.73367961,0.000239,2]
[364657635,1749186640904,-221.02515987,0.00023934,10]
[364657637,1749186640913,-1749.04400184,0.00024,30]
[364657640,1749186640925,-13849.57640287,0.00024,30]
[364657642,1749186640937,-8369.32883294,0.00024,30]
[364657644,1749186640949,-420.97707836,0.00024,30]
[364657646,1749186640961,-351.27555648,0.00024,30]
[364657647,1749186640975,-2669.09903754,0.00024,30]
[364657648,1749186640986,-471.54538709,0.00024,30]
[364657649,1749186641007,-61180.98170288,0.00024,30]
[364657650,1749186641018,-12677.18918728,0.00024,30]
[364657651,1749186641029,-221.02515987,0.00024072,10]
[364657652,1749186641038,-440.0,0.00024109,2]
[364657653,1749186641049,-440.0,0.00024109,2]
[364657654,1749186641058,-440.0,0.00024109,2]
[364657655,1749186641069,-440.0,0.00024109,2]
[364657656,1749186641078,-440.0,0.00024109,2]
[364657657,1749186641087,-440.0,0.00024109,2]
[364657658,1749186641097,-440.0,0.00024109,2]
[364657659,1749186641108,-440.0,0.00024109,2]
[364657660,1749186641117,-440.0,0.00024109,2]
[364657661,1749186641126,-653.12,0.00024109,2]
[364657662,1749186641135,-442.19,0.00024109,2]
[364657663,1749186641145,-611.28,0.000242,7]
[364657664,1749186641156,-221.02515987,0.0002421,10]
[364657665,1749186641168,-500.0,0.00024299,2]
[364657666,1749186641178,-473.28527606,0.00024299,2]
[364657667,1749186641187,-2000.0,0.000243,2]
[364657668,1749186641196,-840.84,0.000243,2]
[364657669,1749186641206,-150.0,0.00024326,2]
[364657670,1749186641216,-221.02515987,0.00024348,11]
[364657671,1749186641227,-154.710064,0.00024351,7]
[364657672,1749186641236,-151.0,0.00024351,7]
[364657673,1749186641246,-151.0,0.00024351,7]
[364657674,1749186641256,-151.0,0.00024351,7]
[364657675,1749186641266,-151.0,0.00024351,7]
[364657676,1749186641275,-151.0,0.00024351,7]
[364657677,1749186641285,-151.0,0.00024351,7]
[364657678,1749186641295,-151.0,0.00024351,7]
[364657679,1749186641305,-151.0,0.00024351,7]
[364657680,1749186641316,-151.0,0.00024351,7]
[364657681,1749186641325,-151.0,0.00024351,7]
[364657682,1749186641336,-231.297482,0.00024351,7]
[364657683,1749186641345,-151.0,0.00024351,7]
[364657684,1749186641355,-151.0,0.00024351,7]
[364657685,1749186641365,-151.0,0.00024351,7]
[364657686,1749186641374,-153.561152,0.00024351,7]
[364657687,1749186641384,-151.0,0.00024351,7]
[364657688,1749186641394,-151.993116,0.00024351,7]
[364657689,1749186641404,-151.0,0.00024351,7]
[364657690,1749186641414,-151.0,0.00024351,7]
[364657691,1749186641424,-151.0,0.00024351,7]
[364657692,1749186641434,-151.0,0.00024351,7]
[364657693,1749186641444,-151.669595,0.00024351,7]
[364657694,1749186641455,-200.982712,0.00024351,7]
[364657695,1749186641465,-151.0,0.00024351,7]
[364657696,1749186641475,-152.747616,0.00024351,7]
[364657697,1749186641485,-151.0,0.00024351,7]
[364657698,1749186641495,-151.0,0.00024351,7]
[364657699,1749186641506,-152.965152,0.00024351,7]
[364657700,1749186641516,-151.0,0.00024351,7]
[364657701,1749186641526,-151.0,0.00024351,7]
[364657702,1749186641536,-151.0,0.00024351,7]
[364657703,1749186641546,-151.0,0.00024351,7]
[364657704,1749186641556,-151.0,0.00024351,7]
[364657705,1749186641566,-151.0,0.00024351,7]
[364657706,1749186641575,-151.0,0.00024351,7]
[364657707,1749186641585,-151.0,0.00024351,7]
[364657708,1749186641595,-151.0,0.00024351,7]
[364657709,1749186641605,-151.0,0.00024351,7]
[364657710,1749186641616,-151.0,0.00024351,7]
[364657711,1749186641625,-151.0,0.00024351,7]
[364657712,1749186641634,-151.0,0.00024351,7]
[364657713,1749186641643,-151.0,0.00024351,7]
[364657714,1749186641653,-257.49201,0.00024351,7]
[364657715,1749186641663,-235.44066,0.00024351,7]
[364657716,1749186641673,-235.44066,0.00024351,7]
[364657717,1749186641683,-235.44066,0.00024351,7]
[364657718,1749186641692,-235.44066,0.00024351,7]
[364657719,1749186641702,-235.44066,0.00024351,7]
[364657720,1749186641712,-235.44066,0.00024351,7]
[364657721,1749186641721,-235.44066,0.00024351,7]
[364657722,1749186641731,-235.44066,0.00024351,7]
[364657723,1749186641740,-235.44066,0.00024351,7]
[364657724,1749186641750,-235.44066,0.00024351,7]
[364657725,1749186641760,-235.44066,0.00024351,7]
[364657726,1749186641770,-235.44066,0.00024351,7]
[364657727,1749186641781,-235.44066,0.00024351,7]
[364657728,1749186641791,-235.44066,0.00024351,7]
[364657729,1749186641800,-235.44066,0.00024351,7]
[364657730,1749186641810,-235.44066,0.00024351,7]
[364657731,1749186641820,-235.44066,0.00024351,7]
[364657732,1749186641830,-235.44066,0.00024351,7]
[364657733,1749186641840,-235.44066,0.00024351,7]
[364657734,1749186641849,-235.44067,0.00024351,7]
[364657735,1749186641859,-151.0,0.00024353,7]
[364657736,1749186641869,-151.0,0.00024353,7]
[364657737,1749186641879,-151.0,0.00024353,7]
[364657738,1749186641888,-183.512585,0.00024353,7]
[364657739,1749186641898,-160.0,0.00024353,7]
[364657740,1749186641908,-151.0,0.00024353,7]
[364657741,1749186641918,-151.0,0.00024353,7]
[364657742,1749186641928,-151.0,0.00024353,7]
[364657743,1749186641937,-224.0,0.00024353,7]
[364657744,1749186641947,-1743.0,0.00024353,3]
[364657745,1749186641956,-1027.63498759,0.00024353,3]
[364657746,1749186641966,-160.0,0.00024353,5]
[364657747,1749186641979,-229.52673067,0.0002436,7]
[364657748,1749186641988,-542947.47662761,0.00024361,20]
[364657749,1749186642025,-1890.11867844,0.00023861,2]
[364657750,1749186642036,-36131.95305616,0.00024361,20]
[364657755,1749186642674,-0.00377794,0.00024361,20]
[364657756,1749186642745,-575.39710003,0.00024361,20]
[364657757,1749186643030,-763.81059378,0.00024061,2]
[364657758,1749186643043,-875.50671319,0.00024061,2]
[364657764,1749186646130,-250.80137147,0.00024061,2]
[364657765,1749186646139,-1890.11867844,0.00024261,2]
[364657766,1749186646231,-19784.25625816,0.00024361,20]
[364657767,1749186850321,10903.15789474,0.00024657,120]
[364657771,1749187530120,-150.0,0.00019703,2]
[364657772,1749187530143,-170.39527,0.00020651,2]
[364657773,1749187530166,-201.077944,0.000208,2]
[364657774,1749187530189,-187.32024563,0.00020821,2]
[364657775,1749187530213,-3188.24127531,0.00020905,2]
[364657776,1749187596073,-150.0,0.00019694,2]
[364657777,1749187596095,-258.22061703,0.00020905,2]
[364657778,1749187619824,279.731491,0.00013699,2]
[364657780,1749187631076,-279.731491,0.00020187,2]
[364657781,1749187631098,-253.121107,0.00020905,2]
[364657782,1749187638083,-181.14041102,0.00020905,2]
[364657783,1749187644087,-170.26386944,0.00020905,2]
[364657784,1749187644108,-353.57718068,0.00021068,2]
[364657785,1749187645122,-565.70527592,0.00021068,2]
[364657786,1749187645144,-5.31702562,0.00021494,2]
[364657787,1749187648121,-144.68297438,0.00021494,2]
[364657788,1749187648145,-159.03433246,0.00021816,2]
[364657789,1749187648166,-157.7218145,0.00021858,2]
[364657791,1749187714290,6787.89616327,0.00024367,120]
[364657810,1749187832373,-150.0,0.00019729,2]
[364657811,1749187832384,-206.01501652,0.000198,2]
[364657812,1749187832394,-602.93289159,0.0002,2]
[364657813,1749187832404,-1858.13429011,0.0002,2]
[364657814,1749187832414,-184.046707,0.00021083,2]
[364657815,1749187832424,-76.49380314,0.00021858,2]
[364657816,1749187832434,-195.039,0.00021915,2]
[364657817,1749187832444,-300.0,0.00021915,2]
[364657818,1749187832453,-300.0,0.00021915,2]
[364657819,1749187832463,-12677.18918728,0.00021916,2]
[364657820,1749187832473,-160.0,0.00021916,2]
[364657821,1749187832483,-500.0,0.00021916,2]
[364657822,1749187832493,-500.0,0.00021916,2]
[364657823,1749187832503,-500.0,0.00021916,2]
[364657824,1749187832512,-500.0,0.00021916,2]
[364657825,1749187832522,-591.88117825,0.00021916,2]
[364657826,1749187832531,-500.0,0.00021916,2]
[364657827,1749187832541,-503.72187594,0.00021916,2]
[364657828,1749187832551,-504.89513269,0.00021916,2]
[364657829,1749187832560,-500.0,0.00021916,2]
[364657830,1749187832570,-518.6726655,0.00021916,2]
[364657831,1749187832580,-500.0,0.00021916,2]
[364657832,1749187832590,-347.45859477,0.00021916,2]
[364657833,1749187832599,-500.0,0.00021916,2]
[364657834,1749187832609,-435.62291918,0.00021916,2]
[364657835,1749187832620,-500.0,0.00021916,2]
[364657836,1749187832629,-500.0,0.00021916,2]
[364657837,1749187832638,-250.0,0.00021916,2]
[364657838,1749187832648,-500.0,0.00021916,2]
[364657839,1749187832658,-411.90536554,0.00021916,2]
[364657840,1749187832668,-500.0,0.00021916,2]
[364657841,1749187832678,-500.0,0.00021916,2]
[364657842,1749187832688,-500.0,0.00021916,2]
[364657843,1749187832698,-500.0,0.00021916,2]
[364657844,1749187832708,-500.0,0.00021916,2]
[364657845,1749187832718,-500.0,0.00021916,2]
[364657846,1749187832727,-500.0,0.00021916,2]
[364657847,1749187832736,-500.0,0.00021916,2]
[364657848,1749187832746,-500.0,0.00021916,2]
[364657849,1749187832755,-500.0,0.00021916,2]
[364657850,1749187832765,-500.0,0.00021916,2]
[364657851,1749187832774,-500.0,0.00021916,2]
[364657852,1749187832785,-500.0,0.00021916,2]
[364657853,1749187832795,-250.0,0.00021916,2]
[364657854,1749187832804,-608.0892385,0.00021916,2]
[364657855,1749187832813,-500.0,0.00021916,2]
[364657856,1749187832824,-500.0,0.00021916,2]
[364657857,1749187832834,-500.0,0.00021916,2]
[364657858,1749187832843,-500.0,0.00021916,2]
[364657859,1749187832852,-500.0,0.00021916,2]
[364657860,1749187832862,-450.0,0.00021916,2]
[364657861,1749187832872,-500.0,0.00021916,2]
[364657862,1749187832882,-500.0,0.00021916,2]
[364657863,1749187832892,-500.0,0.00021916,2]
[364657864,1749187832901,-500.0,0.00021916,2]
[364657865,1749187832911,-500.0,0.00021916,2]
[364657866,1749187832920,-500.0,0.00021916,2]
[364657867,1749187832930,-500.0,0.00021916,2]
[364657868,1749187832941,-500.10307551,0.00021916,2]
[364657869,1749187832950,-500.0,0.00021916,2]
[364657870,1749187832960,-321.57047279,0.00021916,2]
[364657871,1749187832970,-500.0,0.00021916,2]
[364657872,1749187832979,-250.0,0.00021916,2]
[364657873,1749187832989,-500.0,0.00021916,2]
[364657874,1749187832999,-500.0,0.00021916,2]
[364657875,1749187833009,-500.0,0.00021916,2]
[364657876,1749187833018,-500.0,0.00021916,2]
[364657877,1749187833028,-500.0,0.00021916,2]
[364657878,1749187833037,-500.0,0.00021916,2]
[364657879,1749187833047,-245.55292746,0.00021916,2]
[364657880,1749187833056,-300.0,0.00021916,2]
[364657881,1749187833066,-500.0,0.00021916,2]
[364657882,1749187833077,-500.0,0.00021916,2]